fUSD/lending_fUSD_20240521
["ID","MTS","AMOUNT","RATE_DAILY","PERIOD"]
[327663596,1716291044961,-536.54,0.00032984,6]
[327663597,1716291044971,-1131.92,0.00032984,6]
[327663598,1716291044982,-507.05563422,0.00032984,6]
[327663599,1716291044992,-500.0,0.00032984,6]
[327663600,1716291045003,-795.14,0.00032984,6]
[327663601,1716291045014,-500.0,0.00032984,6]
[327663602,1716291045025,-530.10778116,0.00032984,6]
[327663603,1716291045035,-500.0,0.00032984,6]
[327663604,1716291045046,-500.0,0.00032984,6]
[327663605,1716291045057,-500.0,0.00032984,6]
[327663606,1716291045068,-1521.49,0.00032984,6]
[327663607,1716291045078,-730.75,0.00032984,6]
[327663608,1716291045099,-603.53,0.00032984,6]
[327663609,1716291045111,-500.0,0.00032984,6]
[327663610,1716291045122,-500.0,0.00032984,6]
[327663612,1716291045132,-500.0,0.00032984,6]
[327663614,1716291045143,-500.0,0.00032984,6]
[327663615,1716291045154,-500.0,0.00032984,6]
[327663616,1716291045164,-507.68508453,0.00032984,6]
[327663617,1716291045175,-500.0,0.00032984,6]
[327663618,1716291045187,-567.68,0.00032984,6]
[327663619,1716291045198,-1536.69,0.00032984,6]
[327663620,1716291045208,-500.0,0.00032984,6]
[327663621,1716291045219,-500.0,0.00032984,6]
[327663622,1716291045230,-1458.22,0.00032984,6]
[327663623,1716291045241,-500.0,0.00032984,6]
[327663624,1716291045253,-1097.6,0.00032984,6]
[327663625,1716291045263,-500.0,0.00032984,6]
[327663626,1716291045273,-500.0,0.00032984,6]
[327663627,1716291045283,-500.0,0.00032984,6]
[327663628,1716291045293,-546.67,0.00032984,6]
[327663629,1716291045304,-500.0,0.00032984,6]
[327663630,1716291045314,-500.0,0.00032984,6]
[327663631,1716291045325,-500.0,0.00032984,6]
[327663632,1716291045335,-500.0,0.00032984,6]
[327663633,1716291045346,-500.0,0.00032984,6]
[327663634,1716291045356,-504.72124756,0.00032984,6]
[327663635,1716291045367,-500.0,0.00032984,6]
[327663636,1716291045377,-500.0,0.00032984,6]
[327663637,1716291045387,-500.0,0.00032984,6]
[327663638,1716291045397,-796.42,0.00032984,6]
[327663639,1716291045408,-500.0,0.00032984,6]
[327663640,1716291045418,-500.0,0.00032984,6]
[327663641,1716291045429,-500.0,0.00032984,6]
[327663642,1716291045439,-1015.87,0.00032984,6]
[327663643,1716291045449,-501.83678435,0.00032984,6]
[327663644,1716291045459,-500.0,0.00032984,6]
[327663645,1716291045469,-500.0,0.00032984,6]
[327663646,1716291045479,-701.98,0.00032984,6]
[327663647,1716291045489,-500.0,0.00032984,6]
[327663648,1716291045501,-506.46067836,0.00032984,6]
[327663649,1716291045511,-519.30906488,0.00032984,6]
[327663650,1716291045521,-500.0,0.00032984,6]
[327663651,1716291045531,-2000.0,0.00032984,6]
[327663652,1716291045541,-938.89,0.00032984,6]
[327663653,1716291045551,-723.74,0.00032984,6]
[327663654,1716291045562,-500.0,0.00032984,6]
[327663655,1716291045572,-632.17,0.00032984,6]
[327663656,1716291045583,-500.0,0.00032984,6]
[327663657,1716291045594,-500.0,0.00032984,6]
[327663658,1716291045605,-1277.94,0.00032984,6]
[327663659,1716291045619,-2417.43,0.00032984,6]
[327663660,1716291045629,-388.75403154,0.00032985,6]
[327663661,1716291045639,-500.0,0.00032986,6]
[327663662,1716291045650,-500.0,0.00032986,6]
[327663663,1716291045660,-500.0,0.00032986,6]
[327663664,1716291045670,-500.0,0.00032986,6]
[327663665,1716291045680,-500.0,0.00032986,6]
[327663666,1716291045693,-500.0,0.00032986,6]
[327663667,1716291045704,-500.0,0.00032986,6]
[327663668,1716291045714,-500.0,0.00032986,6]
[327663669,1716291045724,-500.0,0.00032986,6]
[327663670,1716291045734,-500.0,0.00032986,6]
[327663672,1716291045744,-500.0,0.00032986,6]
[327663673,1716291045756,-558.75,0.00032986,6]
[327663674,1716291045766,-500.0,0.00032986,6]
[327663675,1716291045776,-500.0,0.00032986,6]
[327663676,1716291045787,-720.94,0.00032986,6]
[327663677,1716291045797,-500.0,0.00032986,6]
[327663678,1716291045807,-814.2,0.00032986,6]
[327663679,1716291045817,-500.0,0.00032986,6]
[327663680,1716291045827,-500.0,0.00032986,6]
[327663681,1716291045837,-609.58,0.00032986,6]
[327663682,1716291045847,-321.31585654,0.00032986,6]
[327663683,1716291045857,-500.0,0.00032986,6]
[327663684,1716291045867,-500.0,0.00032986,6]
[327663685,1716291045877,-555.99,0.00032986,6]
[327663686,1716291045887,-500.0,0.00032986,6]
[327663687,1716291045897,-500.0,0.00032986,6]
[327663688,1716291045907,-658.46,0.00032986,6]
[327663689,1716291045917,-500.0,0.00032986,6]
[327663690,1716291045927,-500.0,0.00032986,6]
[327663691,1716291045937,-526.51454224,0.00032986,6]
[327663692,1716291045947,-500.0,0.00032986,6]
[327663693,1716291045957,-500.0,0.00032986,6]
[327663694,1716291045967,-500.0,0.00032986,6]
[327663695,1716291045978,-538.23995772,0.00032986,6]
[327663696,1716291045989,-727.88,0.00032986,6]
[327663697,1716291046001,-500.0,0.00032986,6]
[327663698,1716291046011,-624.53,0.00032986,6]
[327663699,1716291046021,-530.91972961,0.00032986,6]
[327663700,1716291046032,-269.59972987,0.00032986,6]
[327663701,1716291046042,-500.0,0.00032986,6]
[327663702,1716291046052,-729.98,0.00032986,6]
[327663703,1716291046062,-500.0,0.00032986,6]
[327663704,1716291046072,-500.0,0.00032986,6]
[327663705,1716291046081,-500.0,0.00032986,6]
[327663706,1716291046091,-500.0,0.00032986,6]
[327663707,1716291046101,-500.0,0.00032986,6]
[327663708,1716291046111,-500.0,0.00032986,6]
[327663709,1716291046122,-500.0,0.00032986,6]
[327663710,1716291046132,-524.21,0.00032986,6]
[327663711,1716291046142,-500.0,0.00032986,6]
[327663712,1716291046152,-636.27,0.00032986,6]
[327663713,1716291046162,-500.75488478,0.00032986,6]
[327663714,1716291046172,-500.0,0.00032986,6]
[327663715,1716291046182,-385.37,0.00032986,6]
[327663717,1716291046192,-645.16,0.00032986,6]
[327663718,1716291046202,-500.0,0.00032986,6]
[327663720,1716291046212,-593.38,0.00032986,6]
[327663746,1716291046484,-557.46870776,0.00032986,6]
[327663747,1716291046543,-500.0,0.00032986,6]
[327663748,1716291046553,-500.0,0.00032986,6]
[327663749,1716291046563,-160.9,0.00032986,6]
[327663752,1716291046573,-500.0,0.00032986,6]
[327663754,1716291046583,-587.01,0.00032986,6]
[327663756,1716291046593,-590.01,0.00032986,6]
[327663757,1716291046603,-500.0,0.00032986,6]
[327663758,1716291046614,-684.39,0.00032986,6]
[327663759,1716291046627,-725.91,0.00032986,6]
[327663760,1716291046637,-500.0,0.00032986,6]
[327663761,1716291046647,-1037.31,0.00032986,6]
[327663762,1716291046657,-677.3,0.00032986,6]
[327663763,1716291046667,-500.0,0.00032986,6]
[327663764,1716291046676,-500.0,0.00032986,6]
[327663765,1716291046685,-500.0,0.00032986,6]
[327663766,1716291046695,-613.01450672,0.00032986,6]
[327663767,1716291046706,-522.21,0.00032986,6]
[327663768,1716291046715,-500.0,0.00032986,6]
[327663769,1716291046725,-500.0,0.00032986,6]
[327663770,1716291046735,-500.0,0.00032986,6]
[327663771,1716291046744,-500.0,0.00032986,6]
[327663772,1716291046757,-500.0,0.00032986,6]
[327663773,1716291046766,-752.52,0.00032986,6]
[327663774,1716291046776,-500.0,0.00032986,6]
[327663775,1716291046786,-609.27,0.00032986,6]
[327663776,1716291046795,-500.0,0.00032986,6]
[327663777,1716291046805,-500.0,0.00032986,6]
[327663778,1716291046815,-500.0,0.00032986,6]
[327663779,1716291046824,-500.0,0.00032986,6]
[327663780,1716291046834,-635.11,0.00032986,6]
[327663781,1716291046844,-610.04,0.00032986,6]
[327663782,1716291046853,-500.0,0.00032986,6]
[327663783,1716291046864,-671.13,0.00032986,6]
[327663784,1716291046874,-537.77,0.00032986,6]
[327663785,1716291046883,-608.85218701,0.00032986,6]
[327663786,1716291046893,-588.72,0.00032986,6]
[327663787,1716291046902,-500.0,0.00032986,6]
[327663788,1716291046912,-500.0,0.00032986,6]
[327663789,1716291046922,-500.0,0.00032986,6]
[327663790,1716291046932,-500.0,0.00032986,6]
[327663791,1716291046942,-500.0,0.00032986,6]
[327663792,1716291046951,-904.19,0.00032986,6]
[327663793,1716291046961,-368.77786789,0.00032986,6]
[327663794,1716291046971,-1042.11,0.00032986,6]
[327663795,1716291046981,-872.31,0.00032986,6]
[327663796,1716291046990,-500.0,0.00032986,6]
[327663797,1716291047000,-565.2,0.00032986,6]
[327663798,1716291047012,-595.34,0.00032986,6]
[327663799,1716291047022,-500.0,0.00032986,6]
[327663800,1716291047032,-500.0,0.00032986,6]
[327663801,1716291047042,-960.27,0.00032986,6]
[327663802,1716291047052,-500.0,0.00032986,6]
[327663803,1716291047062,-558.22,0.00032986,6]
[327663804,1716291047072,-500.0,0.00032986,6]
[327663805,1716291047082,-593.51,0.00032986,6]
[327663806,1716291047092,-543.06,0.00032986,6]
[327663807,1716291047102,-500.0,0.00032986,6]
[327663808,1716291047114,-500.0,0.00032986,6]
[327663809,1716291047124,-500.0,0.00032986,6]
[327663810,1716291047134,-591.98,0.00032986,6]
[327663811,1716291047144,-780.47,0.00032986,6]
[327663812,1716291047155,-500.0,0.00032986,6]
[327663813,1716291047165,-1355.07,0.00032986,6]
[327663814,1716291047174,-1055.33,0.00032986,6]
[327663815,1716291047184,-500.0,0.00032986,6]
[327663816,1716291047194,-500.0,0.00032986,6]
[327663817,1716291047204,-500.0,0.00032986,6]
[327663818,1716291047214,-1238.66,0.00032986,6]
[327663819,1716291047224,-500.0,0.00032986,6]
[327663820,1716291047234,-831.32,0.00032986,6]
[327663821,1716291047243,-564.63,0.00032986,6]
[327663822,1716291047255,-525.93,0.00032986,6]
[327663823,1716291047264,-500.0,0.00032986,6]
[327663824,1716291047273,-500.0,0.00032986,6]
[327663825,1716291047283,-500.0,0.00032986,6]
[327663826,1716291047292,-443.1860463,0.00032986,6]
[327663827,1716291047301,-500.0,0.00032986,6]
[327663828,1716291047310,-720.6,0.00032986,6]
[327663829,1716291047320,-660.49,0.00032986,6]
[327663830,1716291047330,-614.32,0.00032986,6]
[327663831,1716291047340,-578.04,0.00032986,6]
[327663832,1716291047349,-500.0,0.00032986,6]
[327663833,1716291047360,-403.89,0.00032986,6]
[327663834,1716291047371,-669.57,0.00032986,6]
[327663835,1716291047381,-599.25,0.00032986,6]
[327663836,1716291047391,-607.52,0.00032986,6]
[327663837,1716291047402,-750.72,0.00032986,6]
[327663838,1716291047412,-885.86,0.00032986,6]
[327663839,1716291047422,-564.65,0.00032986,6]
[327663840,1716291047432,-1040.58,0.00032986,6]
[327663841,1716291047442,-500.19,0.00032986,6]
[327663842,1716291047452,-500.0,0.00032986,6]
[327663843,1716291047462,-765.93,0.00032986,6]
[327663844,1716291047471,-1133.57,0.00032986,6]
[327663845,1716291047481,-1214.5,0.00032986,6]
[327663846,1716291047491,-500.0,0.00032986,6]
[327663847,1716291047502,-748.88,0.00032986,6]
[327663848,1716291047512,-500.0,0.00032986,6]
[327663849,1716291047522,-779.8,0.00032986,6]
[327663850,1716291047532,-654.02,0.00032986,6]
[327663851,1716291047542,-1169.05,0.00032986,6]
[327663852,1716291047552,-1469.08,0.00032986,6]
[327663853,1716291047562,-713.85,0.00032986,6]
[327663854,1716291047572,-500.0,0.00032986,6]
[327663855,1716291047583,-500.0,0.00032986,6]
[327663856,1716291047593,-1050.85,0.00032986,6]
[327663857,1716291047606,-500.0,0.00032986,6]
[327663858,1716291047620,-1701.94,0.00032986,6]
[327663859,1716291047631,-1325.12,0.00032986,6]
[327663860,1716291047640,-500.0,0.00032986,6]
[327663861,1716291047651,-871.49,0.00032986,6]
[327663862,1716291047661,-500.0,0.00032986,6]
[327663863,1716291047672,-1191.66,0.00032986,6]
[327663864,1716291047682,-500.0,0.00032986,6]
[327663865,1716291047693,-648.33,0.00032986,6]
[327663866,1716291047703,-233.37972082,0.00032986,6]
[327663867,1716291047714,-618.02,0.00032986,6]
[327663868,1716291047723,-443.8,0.00032986,6]
[327663869,1716291047733,-500.0,0.00032986,6]
[327663870,1716291047742,-500.0,0.00032986,6]
[327663871,1716291047754,-433.58,0.00032986,6]
[327663872,1716291047763,-607.89083686,0.00032986,6]
[327663873,1716291047773,-694.28,0.00032986,6]
[327663874,1716291047783,-1193.96,0.00032986,6]
[327663875,1716291047792,-1424.94,0.00032986,6]
[327663876,1716291047802,-987.24,0.00032986,6]
[327663877,1716291047812,-512.08,0.00032986,6]
[327663878,1716291047822,-1109.15,0.00032986,6]
[327663879,1716291047832,-500.0,0.00032986,6]
[327663880,1716291047841,-739.04,0.00032986,6]
[327663881,1716291047852,-500.0,0.00032986,6]
[327663882,1716291047861,-500.0,0.00032986,6]
[327663883,1716291047872,-500.0,0.00032986,6]
[327663884,1716291047882,-922.27,0.00032986,6]
[327663885,1716291047892,-1112.34,0.00032986,6]
[327663886,1716291047901,-500.0,0.00032986,6]
[327663887,1716291047911,-906.78,0.00032986,6]
[327663888,1716291047922,-886.11,0.00032986,6]
[327663889,1716291047932,-633.22,0.00032986,6]
[327663890,1716291047942,-968.42,0.00032986,6]
[327663891,1716291047952,-666.45,0.00032986,6]
[327663892,1716291047962,-1278.63,0.00032986,6]
[327663893,1716291047973,-256.19,0.00032986,6]
[327663894,1716291047982,-500.0,0.00032986,6]
[327663895,1716291047992,-566.18,0.00032986,6]
[327663896,1716291048003,-500.0,0.00032986,6]
[327663897,1716291048013,-500.0,0.00032986,6]
[327663898,1716291048023,-927.71,0.00032986,6]
[327663899,1716291048033,-522.59,0.00032986,6]
[327663900,1716291048043,-1441.81,0.00032986,6]
[327663901,1716291048054,-191.59,0.00032986,6]
[327663902,1716291048064,-500.0,0.00032986,6]
[327663903,1716291048074,-383.47,0.00032986,6]
[327663904,1716291048084,-1041.41,0.00032986,6]
[327663905,1716291048094,-191.5,0.00032986,6]
[327663906,1716291048104,-510.96,0.00032986,6]
[327663907,1716291048114,-586.41767881,0.00032986,6]
[327663908,1716291048124,-500.0,0.00032986,6]
[327663909,1716291048134,-567.27,0.00032986,6]
[327663910,1716291048144,-1095.24,0.00032986,6]
[327663911,1716291048154,-536.58,0.00032986,6]
[327663912,1716291048164,-489.58176833,0.00032986,6]
[327663913,1716291048174,-687.83,0.00032986,6]
[327663914,1716291048184,-500.0,0.00032986,6]
[327663915,1716291048194,-500.0,0.00032986,6]
[327663916,1716291048204,-500.0,0.00032986,6]
[327663917,1716291048214,-500.0,0.00032986,6]
[327663918,1716291048224,-500.0,0.00032986,6]
[327663919,1716291048234,-440.55,0.00032986,6]
[327663920,1716291048244,-913.97,0.00032986,6]
[327663921,1716291048255,-500.0,0.00032986,6]
[327663922,1716291048266,-555.37588029,0.00032986,6]
[327663923,1716291048276,-1032.05,0.00032986,6]
[327663924,1716291048285,-2023.13,0.00032986,6]
[327663925,1716291048295,-500.0,0.00032986,6]
[327663926,1716291048306,-1202.56,0.00032986,6]
[327663927,1716291048315,-500.0,0.00032986,6]
[327663928,1716291048325,-500.0,0.00032986,6]
[327663929,1716291048335,-500.0,0.00032986,6]
[327663930,1716291048345,-416.69,0.00032986,6]
[327663931,1716291048354,-879.65,0.00032986,6]
[327663932,1716291048364,-1202.36,0.00032986,6]
[327663933,1716291048375,-2019.13,0.00032986,6]
[327663934,1716291048386,-500.0,0.00032986,6]
[327663935,1716291048396,-1118.5,0.00032986,6]
[327663936,1716291048407,-500.0,0.00032986,6]
[327663937,1716291048416,-1678.3,0.00032986,6]
[327663938,1716291048427,-567.92,0.00032986,6]
[327663939,1716291048436,-500.0,0.00032986,6]
[327663940,1716291048446,-500.0,0.00032986,6]
[327663941,1716291048456,-1701.58,0.00032986,6]
[327663942,1716291048466,-500.0,0.00032986,6]
[327663943,1716291048476,-3042.77,0.00032986,6]
[327663944,1716291048485,-500.0,0.00032986,6]
[327663945,1716291048495,-500.0,0.00032986,6]
[327663946,1716291048506,-500.0,0.00032986,6]
[327663947,1716291048515,-500.0,0.00032986,6]
[327663948,1716291048524,-500.0,0.00032986,6]
[327663949,1716291048534,-799.4,0.00032986,6]
[327663950,1716291048544,-500.0,0.00032986,6]
[327663951,1716291048554,-1387.86,0.00032986,6]
[327663952,1716291048563,-1032.3,0.00032986,6]
[327663953,1716291048573,-9918.7,0.00032986,6]
[327663954,1716291048584,-193.11,0.00032986,6]
[327663955,1716291048593,-500.0,0.00032986,6]
[327663956,1716291048603,-500.0,0.00032986,6]
[327663957,1716291048617,-497.96,0.00032986,6]
[327663958,1716291048627,-500.0,0.00032986,6]
[327663959,1716291048637,-500.0,0.00032986,6]
[327663960,1716291048647,-500.0,0.00032986,6]
[327663961,1716291048657,-1560.23,0.00032986,6]
[327663962,1716291048667,-500.0,0.00032986,6]
[327663963,1716291048675,-500.0,0.00032986,6]
[327663964,1716291048685,-570.7,0.00032986,6]
[327663965,1716291048697,-500.0,0.00032986,6]
[327663966,1716291048707,-500.0,0.00032986,6]
[327663967,1716291048716,-500.0,0.00032986,6]
[327663968,1716291048726,-510.41,0.00032986,6]
[327663969,1716291048735,-500.0,0.00032986,6]
[327663970,1716291048745,-272.48,0.00032986,6]
[327663971,1716291048756,-2881.72,0.00032986,6]
[327663972,1716291048766,-1539.47,0.00032986,6]
[327663973,1716291048775,-1230.29,0.00032986,6]
[327663974,1716291048785,-172.47,0.00032986,6]
[327663975,1716291048794,-1587.89,0.00032986,6]
[327663976,1716291048804,-1664.96,0.00032986,6]
[327663977,1716291048814,-827.83,0.00032986,6]
[327663978,1716291048823,-2149.87,0.00032986,6]
[327663979,1716291048833,-500.0,0.00032986,6]
[327663980,1716291048843,-1818.33,0.00032986,6]
[327663981,1716291048852,-500.0,0.00032986,6]
[327663982,1716291048862,-10289.26,0.00032986,6]
[327663983,1716291048872,-500.0,0.00032986,6]
[327663984,1716291048882,-1393.08,0.00032986,6]
[327663985,1716291048892,-500.0,0.00032986,6]
[327663986,1716291048902,-500.0,0.00032986,6]
[327663987,1716291048911,-718.55,0.00032986,6]
[327663988,1716291048921,-1382.61,0.00032986,6]
[327663989,1716291048931,-966.19,0.00032986,6]
[327663990,1716291048941,-2970.16,0.00032986,6]
[327663991,1716291048950,-7073.63,0.00032986,6]
[327663992,1716291048959,-1919.39,0.00032986,6]
[327663993,1716291048969,-500.0,0.00032986,6]
[327663994,1716291049039,-500.0,0.00032986,6]
[327663995,1716291049048,-802.52,0.00032986,6]
[327663996,1716291049058,-355.28,0.00032986,6]
[327663997,1716291049068,-1163.31,0.00032986,6]
[327663998,1716291049077,-360.88,0.00032986,6]
[327663999,1716291049087,-500.0,0.00032986,6]
[327664000,1716291049096,-1570.45,0.00032986,6]
[327664001,1716291049106,-500.0,0.00032986,6]
[327664002,1716291049115,-1744.34,0.00032986,6]
[327664003,1716291049124,-500.0,0.00032986,6]
[327664004,1716291049134,-2152.68,0.00032986,6]
[327664005,1716291049143,-500.0,0.00032986,6]
[327664006,1716291049152,-929.42,0.00032986,6]
[327664007,1716291049163,-500.0,0.00032986,6]
[327664008,1716291049172,-500.0,0.00032986,6]
[327664009,1716291049182,-553.60684131,0.00032986,6]
[327664010,1716291049191,-8045.38,0.00032986,6]
[327664011,1716291049200,-500.0,0.00032986,6]
[327664012,1716291049210,-3088.9,0.00032986,6]
[327664013,1716291049219,-1331.09,0.00032986,6]
[327664014,1716291049229,-1060.15,0.00032986,6]
[327664015,1716291049238,-500.0,0.00032986,6]
[327664016,1716291049247,-1146.57,0.00032986,6]
[327664017,1716291049259,-2303.35,0.00032986,6]
[327664018,1716291049267,-1223.19,0.00032986,6]
[327664019,1716291049276,-206.33,0.00032986,6]
[327664020,1716291049285,-500.0,0.00032986,6]
[327664021,1716291049294,-500.0,0.00032986,6]
[327664022,1716291049304,-500.0,0.00032986,6]
[327664023,1716291049313,-293.43920669,0.00032986,6]
[327664024,1716291049322,-500.0,0.00032986,6]
[327664025,1716291049331,-500.0,0.00032986,6]
[327664026,1716291049341,-150.0,0.00032986,6]
[327664027,1716291049350,-676.3,0.00032986,6]
[327664028,1716291049359,-4145.22,0.00032986,6]
[327664029,1716291049369,-2570.19,0.00032986,6]
[327664030,1716291049378,-626.31,0.00032986,6]
[327664031,1716291049388,-1599.09,0.00032986,6]
[327664032,1716291049397,-5364.66,0.00032986,6]
[327664033,1716291049407,-500.0,0.00032986,6]
[327664034,1716291049417,-500.0,0.00032986,6]
[327664035,1716291049427,-6984.37,0.00032986,6]
[327664036,1716291049436,-500.0,0.00032986,6]
[327664037,1716291049446,-500.0,0.00032986,6]
[327664038,1716291049455,-571.7,0.00032986,6]
[327664039,1716291049464,-942.14,0.00032986,6]
[327664040,1716291049474,-689.97,0.00032986,6]
[327664041,1716291049483,-523.6491097,0.00032986,6]
[327664042,1716291049492,-3692.28,0.00032986,6]
[327664043,1716291049504,-1418.88,0.00032986,6]
[327664044,1716291049513,-500.0,0.00032986,6]
[327664045,1716291049523,-509.53,0.00032986,6]
[327664046,1716291049532,-6968.22,0.00032986,6]
[327664047,1716291049541,-500.0,0.00032986,6]
[327664048,1716291049551,-500.0,0.00032986,6]
[327664049,1716291049561,-322.63,0.00032986,6]
[327664050,1716291049571,-500.0,0.00032986,6]
[327664051,1716291049580,-500.0,0.00032986,6]
[327664052,1716291049590,-500.0,0.00032986,6]
[327664053,1716291049599,-3478.64,0.00032986,6]
[327664054,1716291049609,-5325.1,0.00032986,6]
[327664055,1716291049621,-1000.13,0.00032986,6]
[327664056,1716291049630,-509.5421978,0.00032986,6]
[327664057,1716291049639,-686.54,0.00032986,6]
[327664058,1716291049648,-4452.95,0.00032986,6]
[327664059,1716291049659,-1958.88,0.00032986,6]
[327664060,1716291049668,-12875.53,0.00032986,6]
[327664061,1716291049677,-507.68,0.00032986,6]
[327664062,1716291049688,-500.0,0.00032986,6]
[327664063,1716291049700,-3223.22,0.00032986,6]
[327664064,1716291049710,-2260.18,0.00032986,6]
[327664065,1716291049720,-802.75,0.00032986,6]
[327664066,1716291049735,-500.0,0.00032986,6]
[327664067,1716291049751,-1830.99,0.00032986,6]
[327664068,1716291049774,-1094.45,0.00032986,6]
[327664069,1716291049783,-500.0,0.00032986,6]
[327664070,1716291049793,-1349.13,0.00032986,6]
[327664071,1716291049802,-522.43748398,0.00032986,6]
[327664072,1716291049812,-500.0,0.00032986,6]
[327664073,1716291049821,-3067.89,0.00032986,6]
[327664074,1716291049830,-2569.11,0.00032986,6]
[327664075,1716291049840,-513.03,0.00032986,6]
[327664076,1716291049849,-500.0,0.00032986,6]
[327664077,1716291049858,-1618.62,0.00032986,6]
[327664078,1716291049867,-518.15,0.00032986,6]
[327664079,1716291049876,-500.0,0.00032986,6]
[327664080,1716291049886,-1596.78,0.00032986,6]
[327664081,1716291049895,-1131.22,0.00032986,6]
[327664082,1716291049904,-961.79,0.00032986,6]
[327664083,1716291049913,-686.26,0.00032986,6]
[327664084,1716291049923,-500.0,0.00032986,6]
[327664085,1716291049932,-663.94,0.00032986,6]
[327664086,1716291049942,-500.0,0.00032986,6]
[327664087,1716291049951,-3508.44,0.00032986,6]
[327664088,1716291049960,-523.15225968,0.00032986,6]
[327664089,1716291049970,-2042.42,0.00032986,6]
[327664090,1716291049979,-2559.66,0.00032986,6]
[327664091,1716291049989,-2144.2,0.00032986,6]
[327664092,1716291049998,-3088.3,0.00032986,6]
[327664093,1716291050009,-500.0,0.00032986,6]
[327664094,1716291050018,-541.58,0.00032986,6]
[327664095,1716291050027,-500.0,0.00032986,6]
[327664096,1716291050037,-857.6,0.00032986,6]
[327664097,1716291050047,-2771.03,0.00032986,6]
[327664098,1716291050057,-519.2088194,0.00032986,6]
[327664099,1716291050066,-500.0,0.00032986,6]
[327664100,1716291050076,-20774.01,0.00032986,6]
[327664101,1716291050086,-500.0,0.00032986,6]
[327664102,1716291050095,-722.94,0.00032986,6]
[327664103,1716291050105,-976.39,0.00032986,6]
[327664104,1716291050115,-517.4,0.00032986,6]
[327664105,1716291050124,-2952.08,0.00032986,6]
[327664106,1716291050134,-500.0,0.00032986,6]
[327664107,1716291050143,-2359.71,0.00032986,6]
[327664108,1716291050153,-500.0,0.00032986,6]
[327664109,1716291050163,-1971.69,0.00032986,6]
[327664110,1716291050173,-1229.51,0.00032986,6]
[327664111,1716291050183,-1127.28,0.00032986,6]
[327664112,1716291050193,-549.85,0.00032986,6]
[327664113,1716291050202,-1075.86,0.00032986,6]
[327664114,1716291050212,-1806.28,0.00032986,6]
[327664115,1716291050221,-500.0,0.00032986,6]
[327664116,1716291050231,-2374.57,0.00032986,6]
[327664117,1716291050240,-4545.76,0.00032986,6]
[327664118,1716291050249,-2269.94,0.00032986,6]
[327664119,1716291050260,-500.0,0.00032986,6]
[327664120,1716291050270,-3166.66,0.00032986,6]
[327664121,1716291050279,-500.0,0.00032986,6]
[327664122,1716291050288,-550.53,0.00032986,6]
[327664123,1716291050298,-2075.28,0.00032986,6]
[327664124,1716291050309,-514.28,0.00032986,6]
[327664125,1716291050318,-52301.07,0.00032986,6]
[327664126,1716291050327,-1796.5,0.00032986,6]
[327664127,1716291050337,-500.0,0.00032986,6]
[327664128,1716291050346,-500.0,0.00032986,6]
[327664129,1716291050356,-5522.34,0.00032986,6]